fUST/lending_fUST_20250812
["ID","MTS","AMOUNT","RATE_DAILY","PERIOD"]
[378699086,1754961065296,-151.0,0.00020442,2]
[378699087,1754961065305,-230.469571,0.00020442,2]
[378699088,1754961065315,-230.469571,0.00020442,2]
[378699089,1754961065324,-151.0,0.00020444,2]
[378699090,1754961065333,-168.0,0.00020445,2]
[378699091,1754961065342,-3585.767819,0.00020468,2]
[378699092,1754961065351,-3585.767819,0.00020468,2]
[378699093,1754961065361,-1500.0,0.00020468,2]
[378699094,1754961065370,-1500.0,0.00020468,2]
[378699095,1754961065380,-1000.0,0.00020468,2]
[378699096,1754961065388,-841.15113889,0.00020468,2]
[378699097,1754961065398,-1500.0,0.00020468,2]
[378699098,1754961065408,-1500.0,0.00020468,2]
[378699099,1754961065418,-1500.0,0.00020468,2]
[378699100,1754961065427,-1500.0,0.00020468,2]
[378699101,1754961065437,-1500.0,0.00020468,2]
[378699102,1754961065446,-160.0,0.00020471,3]
[378699103,1754961065455,-201.6,0.0002054,2]
[378699104,1754961065465,-160.0,0.00020578,4]
[378699105,1754961065474,-260.0,0.00020581,2]
[378699106,1754961065484,-168.0,0.00020582,2]
[378699107,1754961065493,-168.0,0.00020587,2]
[378699108,1754961065503,-460.0,0.00020608,2]
[378699109,1754961065513,-660.22,0.00020608,2]
[378699110,1754961065522,-460.0,0.00020609,2]
[378699111,1754961065531,-548.21,0.00020609,2]
[378699112,1754961065540,-476.95,0.00020609,2]
[378699113,1754961065549,-2289.39,0.00020609,2]
[378699114,1754961065559,-564.29,0.00020609,2]
[378699115,1754961065569,-1384.4,0.00020609,2]
[378699116,1754961065579,-460.0,0.00020609,2]
[378699117,1754961065589,-4496.04,0.00020609,2]
[378699118,1754961065599,-3611.52,0.0002061,2]
[378699119,1754961065608,-1382.19,0.0002061,2]
[378699120,1754961065623,-460.0,0.0002061,2]
[378699121,1754961065632,-1070.11,0.0002061,2]
[378699122,1754961065642,-2800.52,0.0002061,2]
[378699123,1754961065651,-1337.21,0.0002061,2]
[378699124,1754961065660,-460.0,0.0002061,2]
[378699125,1754961065673,-460.0,0.0002061,2]
[378699126,1754961065684,-460.0,0.0002061,2]
[378699127,1754961065694,-520.46,0.0002061,2]
[378699128,1754961065704,-1848.44,0.0002061,2]
[378699129,1754961065714,-2122.24,0.0002061,2]
[378699130,1754961065723,-348.9,0.0002061,2]
[378699131,1754961065732,-557.97,0.0002061,2]
[378699132,1754961065741,-460.0,0.0002061,2]
[378699133,1754961065750,-460.0,0.00020611,2]
[378699134,1754961065759,-460.0,0.00020611,2]
[378699135,1754961065769,-470.77,0.00020611,2]
[378699136,1754961065777,-1142.02,0.00020611,2]
[378699137,1754961065786,-933.19,0.00020611,2]
[378699138,1754961065796,-508.47,0.00020611,2]
[378699139,1754961065805,-460.0,0.00020611,2]
[378699140,1754961065815,-644.06,0.00020611,2]
[378699141,1754961065824,-1041.35,0.00020611,2]
[378699142,1754961065834,-460.0,0.00020611,2]
[378699143,1754961065843,-5662.12,0.00020611,2]
[378699144,1754961065852,-460.0,0.00020611,2]
[378699145,1754961065863,-460.0,0.00020611,2]
[378699146,1754961065872,-467.83,0.00020611,2]
[378699147,1754961065881,-1017.4,0.00020611,2]
[378699148,1754961065898,-209.22495505,0.00020611,2]
[378699149,1754961065909,-460.0,0.00020611,2]
[378699150,1754961065918,-495.3,0.00020611,2]
[378699151,1754961065927,-460.0,0.00020611,2]
[378699152,1754961065936,-851.43,0.00020611,2]
[378699153,1754961065946,-421.01426936,0.00020611,2]
[378699154,1754961065955,-3987.56,0.00020611,2]
[378699155,1754961065965,-460.0,0.00020611,2]
[378699156,1754961065974,-527.32,0.00020611,2]
[378699157,1754961065983,-980.86,0.00020611,2]
[378699158,1754961065993,-460.0,0.00020611,2]
[378699159,1754961066002,-559.31,0.00020611,2]
[378699160,1754961066012,-1359.37,0.00020611,2]
[378699161,1754961066021,-994.72,0.00020611,2]
[378699162,1754961066031,-2156.76,0.00020611,2]
[378699163,1754961066041,-927.82,0.00020611,2]
[378699164,1754961066050,-1211.11,0.00020611,2]
[378699165,1754961066059,-3782.63,0.00020611,2]
[378699166,1754961066069,-910.93,0.00020611,2]
[378699167,1754961066085,-716.34,0.00020611,2]
[378699168,1754961066095,-1054.97,0.00020611,2]
[378699169,1754961066104,-609.68,0.00020611,2]
[378699170,1754961066113,-1009.28,0.00020611,2]
[378699171,1754961066122,-3050.74,0.00020611,2]
[378699172,1754961066132,-460.0,0.00020611,2]
[378699173,1754961066143,-460.0,0.00020611,2]
[378699174,1754961066152,-1533.17,0.00020611,2]
[378699175,1754961066161,-2964.63,0.00020611,2]
[378699176,1754961066171,-847.73,0.00020611,2]
[378699177,1754961066180,-466.69,0.00020611,2]
[378699178,1754961066189,-1291.63,0.00020611,2]
[378699179,1754961066198,-580.56,0.00020612,2]
[378699180,1754961066210,-460.0,0.00020612,2]
[378699181,1754961066220,-460.0,0.00020612,2]
[378699182,1754961066229,-460.0,0.00020612,2]
[378699183,1754961066238,-522.31078103,0.00020612,2]
[378699184,1754961066249,-1019.8,0.00020612,2]
[378699185,1754961066258,-718.56,0.00020612,2]
[378699186,1754961066267,-657.97,0.00020612,2]
[378699187,1754961066277,-460.0,0.00020612,2]
[378699188,1754961066286,-460.0,0.00020612,2]
[378699189,1754961066296,-460.0,0.00020612,2]
[378699190,1754961066307,-460.0,0.00020612,2]
[378699191,1754961066317,-460.0,0.00020612,2]
[378699192,1754961066327,-460.0,0.00020612,2]
[378699193,1754961066336,-460.0,0.00020612,2]
[378699194,1754961066346,-805.43,0.00020612,2]
[378699195,1754961066357,-653.37,0.00020612,2]
[378699196,1754961066367,-460.0,0.00020612,2]
[378699197,1754961066379,-460.0,0.00020612,2]
[378699198,1754961066389,-460.0,0.00020612,2]
[378699199,1754961066399,-460.0,0.00020612,2]
[378699200,1754961066408,-460.0,0.00020612,2]
[378699201,1754961066418,-460.0,0.00020612,2]
[378699202,1754961066430,-318.3782047,0.00020612,2]
[378699203,1754961066441,-1068.57,0.00020612,2]
[378699204,1754961066451,-603.87,0.00020612,2]
[378699205,1754961066461,-462.9,0.00020612,2]
[378699206,1754961066471,-460.0,0.00020612,2]
[378699207,1754961066481,-1132.92,0.00020612,2]
[378699208,1754961066491,-460.0,0.00020612,2]
[378699209,1754961066503,-674.21,0.00020612,2]
[378699210,1754961066514,-1807.04,0.00020612,2]
[378699211,1754961066524,-460.0,0.00020612,2]
[378699212,1754961066533,-580.65,0.00020612,2]
[378699213,1754961066543,-717.43,0.00020612,2]
[378699214,1754961066552,-586.91,0.00020612,2]
[378699215,1754961066562,-552.12,0.00020612,2]
[378699216,1754961066571,-1523.52,0.00020612,2]
[378699217,1754961066581,-460.0,0.00020612,2]
[378699218,1754961066592,-355.37312337,0.00020612,2]
[378699219,1754961066602,-460.0,0.00020612,2]
[378699220,1754961066618,-738.34,0.00020612,2]
[378699221,1754961066627,-460.0,0.00020612,2]
[378699222,1754961066636,-460.0,0.00020612,2]
[378699223,1754961066648,-460.0,0.00020612,2]
[378699224,1754961066659,-2454.84,0.00020612,2]
[378699225,1754961066669,-491.09,0.00020612,2]
[378699226,1754961066679,-534.16,0.00020612,2]
[378699227,1754961066691,-1119.95,0.00020612,2]
[378699228,1754961066702,-460.0,0.00020612,2]
[378699229,1754961066713,-536.78,0.00020612,2]
[378699230,1754961066723,-1529.48,0.00020612,2]
[378699231,1754961066731,-489.87,0.00020612,2]
[378699232,1754961066741,-1177.28,0.00020612,2]
[378699233,1754961066750,-605.38097869,0.00020612,2]
[378699234,1754961066760,-257.84797569,0.00020612,2]
[378699235,1754961066770,-715.66,0.00020612,2]
[378699236,1754961066779,-460.0,0.00020612,2]
[378699237,1754961066788,-460.0,0.00020612,2]
[378699238,1754961066798,-460.0,0.00020612,2]
[378699239,1754961066807,-460.0,0.00020612,2]
[378699240,1754961066816,-1701.96,0.00020612,2]
[378699241,1754961066826,-1754.81,0.00020612,2]
[378699242,1754961066835,-727.46,0.00020612,2]
[378699243,1754961066846,-168.0,0.00020662,2]
[378699244,1754961066856,-420.0,0.00020664,2]
[378699245,1754961066865,-201.6,0.0002068,2]
[378699246,1754961066874,-160.0,0.00020686,5]
[378699247,1754961066884,-168.0,0.00020689,2]
[378699248,1754961066893,-860.7498552,0.00020708,2]
[378699249,1754961066902,-168.0,0.00020711,2]
[378699250,1754961066911,-151.0,0.00020712,2]
[378699251,1754961066920,-151.0,0.00020712,2]
[378699252,1754961066930,-151.0,0.00020712,2]
[378699253,1754961066940,-151.0,0.00020712,2]
[378699254,1754961066951,-151.0,0.00020712,2]
[378699255,1754961066960,-494.71,0.00020712,2]
[378699256,1754961066970,-1128.94,0.00020712,2]
[378699257,1754961066980,-460.0,0.00020712,2]
[378699258,1754961066989,-462.56,0.00020712,2]
[378699259,1754961067000,-460.0,0.00020712,2]
[378699260,1754961067010,-460.0,0.00020712,2]
[378699261,1754961067020,-460.0,0.00020712,2]
[378699262,1754961067029,-460.0,0.00020712,2]
[378699263,1754961067038,-651.81,0.00020712,2]
[378699264,1754961067048,-460.0,0.00020712,2]
[378699265,1754961067058,-506.94,0.00020712,2]
[378699266,1754961067074,-460.0,0.00020712,2]
[378699267,1754961067086,-944.89,0.00020712,2]
[378699268,1754961067096,-460.0,0.00020712,2]
[378699269,1754961067106,-724.66,0.00020712,2]
[378699270,1754961067115,-460.0,0.00020712,2]
[378699271,1754961067125,-688.03,0.00020712,2]
[378699272,1754961067135,-466.52,0.00020712,2]
[378699273,1754961067144,-917.47,0.00020712,2]
[378699274,1754961067154,-426.77172708,0.00020712,2]
[378699275,1754961067164,-460.0,0.00020712,2]
[378699276,1754961067173,-1835.2,0.00020712,2]
[378699277,1754961067183,-397.770434,0.00020712,2]
[378699278,1754961067193,-397.770436,0.00020712,2]
[378699279,1754961067202,-460.0,0.00020712,2]
[378699280,1754961067212,-460.0,0.00020712,2]
[378699281,1754961067221,-460.0,0.00020712,2]
[378699282,1754961067231,-234.75446645,0.00020712,2]
[378699283,1754961067240,-649.7,0.00020712,2]
[378699284,1754961067250,-590.9,0.00020712,2]
[378699285,1754961067259,-12815.59,0.00020712,2]
[378699286,1754961067271,-3883.0,0.00020712,2]
[378699287,1754961067280,-460.0,0.00020713,2]
[378699288,1754961067290,-536.82,0.00020713,2]
[378699289,1754961067299,-526.3,0.00020713,2]
[378699290,1754961067308,-460.0,0.00020713,2]
[378699291,1754961067318,-460.0,0.00020713,2]
[378699292,1754961067327,-460.0,0.00020713,2]
[378699293,1754961067337,-968.81,0.00020713,2]
[378699294,1754961067346,-460.0,0.00020713,2]
[378699295,1754961067356,-460.0,0.00020713,2]
[378699296,1754961067365,-729.75,0.00020713,2]
[378699297,1754961067375,-460.0,0.00020713,2]
[378699298,1754961067384,-539.29117417,0.00020713,2]
[378699299,1754961067394,-460.0,0.00020713,2]
[378699300,1754961067403,-460.0,0.00020713,2]
[378699301,1754961067413,-460.0,0.00020713,2]
[378699302,1754961067422,-460.0,0.00020713,2]
[378699303,1754961067431,-460.0,0.00020713,2]
[378699304,1754961067441,-475.859386,0.00020713,2]
[378699305,1754961067451,-475.859396,0.00020713,2]
[378699306,1754961067460,-962.988121,0.00020713,2]
[378699307,1754961067470,-215.727577,0.00020713,2]
[378699308,1754961067480,-215.727577,0.00020713,2]
[378699309,1754961067490,-458.5564,0.00020713,2]
[378699310,1754961067500,-458.556405,0.00020713,2]
[378699311,1754961067511,-530.0,0.00020713,2]
[378699312,1754961067523,-2457.17,0.00020713,2]
[378699313,1754961067533,-2157.46,0.00020713,2]
[378699314,1754961067543,-1500.23,0.00020713,2]
[378699315,1754961067553,-551.27,0.00020713,2]
[378699316,1754961067563,-3814.9,0.00020713,2]
[378699317,1754961067572,-257.90489718,0.00020714,2]
[378699318,1754961067582,-198.0,0.00020714,2]
[378699319,1754961067592,-500.0,0.00020714,2]
[378699320,1754961067601,-198.0,0.00020714,2]
[378699321,1754961067611,-151.0,0.00020714,2]
[378699322,1754961067624,-151.0,0.00020714,2]
[378699323,1754961067634,-230.469571,0.00020714,2]
[378699324,1754961067643,-230.469571,0.00020714,2]
[378699325,1754961067653,-3585.767819,0.00020714,2]
[378699326,1754961067663,-3585.76781809,0.00020714,2]
[378699327,1754961067673,-2000.0,0.00020716,2]
[378699328,1754961067683,-500.0,0.00020716,2]
[378699329,1754961067693,-2000.0,0.00020716,2]
[378699330,1754961067704,-855.92661282,0.00020716,2]
[378699331,1754961067713,-151.0,0.00020721,2]
[378699332,1754961067722,-350.0,0.00020768,2]
[378699333,1754961067732,-822.0,0.00020773,2]
[378699334,1754961067742,-160.0,0.00020794,6]
[378699335,1754961067751,-1100.0,0.00020808,2]
[378699336,1754961067760,-201.6,0.00020821,2]
[378699337,1754961067772,-460.0,0.00020882,2]
[378699338,1754961067782,-660.22,0.00020882,2]
[378699339,1754961067792,-460.0,0.00020883,2]
[378699340,1754961067801,-548.21,0.00020883,2]
[378699341,1754961067811,-476.95,0.00020883,2]
[378699342,1754961067821,-2289.39,0.00020883,2]
[378699343,1754961067831,-564.29,0.00020883,2]
[378699344,1754961067841,-1384.4,0.00020883,2]
[378699345,1754961067851,-460.0,0.00020883,2]
[378699346,1754961067860,-4496.04,0.00020883,2]
[378699347,1754961067870,-3611.52,0.00020884,2]
[378699348,1754961067880,-1382.19,0.00020884,2]
[378699349,1754961067889,-460.0,0.00020884,2]
[378699350,1754961067899,-1070.11,0.00020884,2]
[378699351,1754961067909,-2800.52,0.00020884,2]
[378699352,1754961067919,-1337.21,0.00020884,2]
[378699353,1754961067929,-460.0,0.00020884,2]
[378699354,1754961067939,-506.74955825,0.00020884,2]
[378699355,1754961067950,-460.0,0.00020884,2]
[378699356,1754961067960,-520.46,0.00020884,2]
[378699357,1754961067970,-1848.44,0.00020884,2]
[378699358,1754961067980,-2122.24,0.00020884,2]
[378699359,1754961067990,-557.97,0.00020884,2]
[378699360,1754961068000,-460.0,0.00020884,2]
[378699361,1754961068010,-172.02025305,0.00020885,2]
[378699362,1754961068020,-460.0,0.00020885,2]
[378699363,1754961068030,-470.77,0.00020885,2]
[378699364,1754961068040,-1142.02,0.00020885,2]
[378699365,1754961068051,-933.19,0.00020885,2]
[378699366,1754961068061,-508.47,0.00020885,2]
[378699367,1754961068071,-460.0,0.00020885,2]
[378699368,1754961068081,-644.06,0.00020885,2]
[378699369,1754961068091,-1041.35,0.00020885,2]
[378699370,1754961068101,-460.0,0.00020885,2]
[378699371,1754961068111,-5662.12,0.00020885,2]
[378699372,1754961068121,-460.0,0.00020885,2]
[378699373,1754961068131,-460.0,0.00020885,2]
[378699374,1754961068142,-1017.4,0.00020885,2]
[378699375,1754961068152,-467.83,0.00020885,2]
[378699376,1754961068162,-460.0,0.00020885,2]
[378699377,1754961068172,-495.3,0.00020885,2]
[378699378,1754961068182,-460.0,0.00020885,2]
[378699379,1754961068192,-851.43,0.00020885,2]
[378699380,1754961068202,-3987.56,0.00020885,2]
[378699381,1754961068211,-460.0,0.00020885,2]
[378699382,1754961068221,-527.32,0.00020885,2]
[378699383,1754961068230,-980.86,0.00020885,2]
[378699384,1754961068240,-460.0,0.00020885,2]
[378699385,1754961068256,-559.31,0.00020885,2]
[378699386,1754961068266,-1359.37,0.00020885,2]
[378699387,1754961068276,-994.72,0.00020885,2]
[378699388,1754961068286,-2156.76,0.00020885,2]
[378699389,1754961068303,-927.82,0.00020885,2]
[378699390,1754961068314,-1211.11,0.00020885,2]
[378699391,1754961068324,-3782.63,0.00020885,2]
[378699392,1754961068334,-910.93,0.00020885,2]
[378699393,1754961068344,-716.34,0.00020885,2]
[378699394,1754961068353,-1054.97,0.00020885,2]
[378699395,1754961068363,-609.68,0.00020885,2]
[378699396,1754961068372,-1009.28,0.00020885,2]
[378699397,1754961068382,-3050.74,0.00020885,2]
[378699398,1754961068392,-207.40387205,0.00020885,2]
[378699399,1754961068401,-460.0,0.00020885,2]
[378699400,1754961068411,-1533.17,0.00020885,2]
[378699401,1754961068420,-2964.63,0.00020885,2]
[378699402,1754961068430,-847.73,0.00020885,2]
[378699403,1754961068439,-466.69,0.00020885,2]
[378699404,1754961068449,-1291.63,0.00020885,2]
[378699405,1754961068459,-580.56,0.00020886,2]
[378699406,1754961068469,-460.0,0.00020886,2]
[378699407,1754961068479,-460.0,0.00020886,2]
[378699408,1754961068488,-1019.8,0.00020886,2]
[378699409,1754961068498,-718.56,0.00020886,2]
[378699410,1754961068507,-657.97,0.00020886,2]
[378699411,1754961068518,-460.0,0.00020886,2]
[378699412,1754961068527,-460.0,0.00020886,2]
[378699413,1754961068536,-460.0,0.00020886,2]
[378699414,1754961068546,-460.0,0.00020886,2]
[378699415,1754961068555,-460.0,0.00020886,2]
[378699416,1754961068566,-460.0,0.00020886,2]
[378699417,1754961068575,-460.0,0.00020886,2]
[378699418,1754961068584,-805.43,0.00020886,2]
[378699419,1754961068594,-653.37,0.00020886,2]
[378699420,1754961068604,-460.0,0.00020886,2]
[378699421,1754961068616,-460.0,0.00020886,2]
[378699422,1754961068627,-460.0,0.00020886,2]
[378699423,1754961068639,-460.0,0.00020886,2]
[378699424,1754961068648,-460.0,0.00020886,2]
[378699425,1754961068659,-1068.57,0.00020886,2]
[378699426,1754961068670,-603.87,0.00020886,2]
[378699427,1754961068679,-462.9,0.00020886,2]
[378699428,1754961068689,-460.0,0.00020886,2]
[378699429,1754961068699,-1132.92,0.00020886,2]
[378699430,1754961068710,-460.0,0.00020886,2]
[378699431,1754961068720,-674.21,0.00020886,2]
[378699432,1754961068730,-1807.04,0.00020886,2]
[378699433,1754961068739,-460.0,0.00020886,2]
[378699434,1754961068749,-580.65,0.00020886,2]
[378699435,1754961068759,-717.43,0.00020886,2]
[378699436,1754961068770,-586.91,0.00020886,2]
[378699437,1754961068780,-552.12,0.00020886,2]
[378699438,1754961068793,-1523.52,0.00020886,2]
[378699439,1754961068803,-460.0,0.00020886,2]
[378699440,1754961068813,-460.0,0.00020886,2]
[378699441,1754961068823,-738.34,0.00020886,2]
[378699442,1754961068832,-460.0,0.00020886,2]
[378699443,1754961068842,-460.0,0.00020886,2]
[378699444,1754961068853,-2454.84,0.00020886,2]
[378699445,1754961068864,-491.09,0.00020886,2]
[378699446,1754961068876,-534.16,0.00020886,2]
[378699447,1754961068886,-1119.95,0.00020886,2]
[378699448,1754961068897,-460.0,0.00020886,2]
[378699449,1754961068907,-536.78,0.00020886,2]
[378699450,1754961069072,-1529.48,0.00020886,2]
[378699451,1754961069083,-489.87,0.00020886,2]
[378699452,1754961069094,-1177.28,0.00020886,2]
[378699453,1754961069104,-715.66,0.00020886,2]
[378699454,1754961069117,-460.0,0.00020886,2]
[378699455,1754961069129,-460.0,0.00020886,2]
[378699456,1754961069139,-443.44983251,0.00020886,2]
[378699457,1754961069149,-460.0,0.00020886,2]
[378699458,1754961069159,-1701.96,0.00020886,2]
[378699459,1754961069169,-1754.81,0.00020886,2]
[378699460,1754961069179,-509.71565819,0.00020886,2]
[378699461,1754961069198,-217.74434181,0.00020886,2]
[378699462,1754961069207,-250.97563021,0.000209,2]
[378699463,1754961069218,-160.0,0.00020902,7]
[378699464,1754961069228,-1800.0,0.00020968,2]
[378699465,1754961069238,-488.34002798,0.00020968,2]
[378699466,1754961069270,-438.52356985,0.00018966,2]
[378699469,1754961069472,-500.0,0.00018958,2]
[378699470,1754961069482,-198.73730413,0.00018958,2]
[378699471,1754961069491,-489.45452389,0.00018964,2]
[378699472,1754961069501,-161.50549976,0.00018966,2]
[378699473,1754961069511,-500.0,0.00018966,2]
[378699474,1754961069520,-500.0,0.00018966,2]
[378699475,1754961069529,-441.75,0.00019239,2]
[378699476,1754961069539,-4551.70946166,0.00019415,2]
[378699477,1754961069548,-460.0,0.00020712,2]
[378699478,1754961069557,-1011.65997202,0.00020968,2]
[378699479,1754961069567,-1500.0,0.00020968,2]
[378699480,1754961069576,-1500.0,0.00020968,2]
[378699481,1754961069586,-748.39522733,0.00020968,2]
[378699482,1754961069602,-151.0,0.00020986,2]
[378699483,1754961069618,-151.0,0.00020986,2]
[378699484,1754961069630,-151.0,0.00020986,2]
[378699485,1754961069640,-494.71,0.00020986,2]
[378699486,1754961069649,-1128.94,0.00020986,2]
[378699487,1754961069659,-460.0,0.00020986,2]
[378699489,1754961069668,-462.56,0.00020986,2]
[378699490,1754961069677,-460.0,0.00020986,2]
[378699491,1754961069686,-460.0,0.00020986,2]
[378699493,1754961069695,-460.0,0.00020986,2]
[378699494,1754961069706,-460.0,0.00020986,2]
[378699495,1754961069716,-651.81,0.00020986,2]
[378699496,1754961069725,-460.0,0.00020986,2]
[378699497,1754961069734,-506.94,0.00020986,2]
[378699498,1754961069744,-460.0,0.00020986,2]
[378699499,1754961069753,-944.89,0.00020986,2]
[378699500,1754961069762,-460.0,0.00020986,2]
[378699501,1754961069772,-724.66,0.00020986,2]
[378699502,1754961069782,-460.0,0.00020986,2]
[378699503,1754961069792,-688.03,0.00020986,2]
[378699504,1754961069801,-466.52,0.00020986,2]
[378699505,1754961069811,-917.47,0.00020986,2]
[378699506,1754961069821,-460.0,0.00020986,2]
[378699507,1754961069830,-1835.2,0.00020986,2]
[378699508,1754961069840,-460.0,0.00020986,2]
[378699509,1754961069850,-460.0,0.00020986,2]
[378699510,1754961069860,-460.0,0.00020986,2]
[378699511,1754961069869,-649.7,0.00020986,2]
[378699512,1754961069879,-590.9,0.00020986,2]
[378699513,1754961069889,-12815.59,0.00020986,2]
[378699514,1754961069899,-3883.0,0.00020986,2]
[378699515,1754961069908,-460.0,0.00020986,2]
[378699516,1754961069917,-460.0,0.00020987,2]
[378699517,1754961069927,-536.82,0.00020987,2]
[378699518,1754961069936,-526.3,0.00020987,2]
[378699519,1754961069946,-466.41359189,0.00020987,2]
[378699520,1754961069955,-460.0,0.00020987,2]
[378699521,1754961069965,-460.0,0.00020987,2]
[378699522,1754961069974,-968.81,0.00020987,2]
[378699524,1754961069983,-230.469571,0.00020987,2]
[378699525,1754961069993,-460.0,0.00020987,2]
[378699527,1754961070002,-230.469571,0.00020987,2]
[378699528,1754961070012,-460.0,0.00020987,2]
[378699529,1754961070022,-729.75,0.00020987,2]
[378699531,1754961070031,-460.0,0.00020987,2]
[378699532,1754961070041,-460.0,0.00020987,2]
[378699533,1754961070051,-460.0,0.00020987,2]
[378699534,1754961070060,-460.0,0.00020987,2]
[378699535,1754961070069,-460.0,0.00020987,2]
[378699536,1754961070078,-460.0,0.00020987,2]
[378699537,1754961070088,-530.0,0.00020987,2]
[378699538,1754961070097,-2457.17,0.00020987,2]
[378699539,1754961070106,-2157.46,0.00020987,2]
[378699540,1754961070116,-1500.23,0.00020987,2]
[378699541,1754961070126,-551.27,0.00020987,2]
[378699542,1754961070136,-3814.9,0.00020987,2]
[378699543,1754961070145,-500.0,0.00020988,2]
[378699544,1754961070155,-168.0,0.00020991,2]
[378699545,1754961070164,-151.0,0.00020992,2]
[378699546,1754961070173,-1942.28339133,0.00021,5]
[378699547,1754961070182,-18523.0,0.00021,2]
[378699548,1754961070191,-271.19766456,0.00021,2]
[378699549,1754961070200,-151.0,0.00021,2]
[378699550,1754961070209,-151.0,0.00021,2]
[378699551,1754961070218,-151.0,0.00021,2]
[378699552,1754961070227,-160.0,0.0002101,8]
[378699553,1754961070236,-2000.0,0.00021016,2]
[378699554,1754961070246,-182.73139457,0.00021016,2]
[378699555,1754961070256,-2000.0,0.00021016,2]
[378699557,1754961070265,-2000.0,0.00021016,2]
[378699558,1754961070274,-2000.0,0.00021016,2]
[378699559,1754961070284,-2000.0,0.00021016,2]
[378699560,1754961070293,-2000.0,0.00021016,2]
[378699561,1754961070303,-366.0,0.00021019,2]
[378699562,1754961070311,-1000.0,0.00021068,2]
[378699563,1754961070320,-168.0,0.00021087,2]
[378699564,1754961070330,-160.0,0.00021118,9]
[378699565,1754961070339,-162.0,0.00021123,4]
[378699566,1754961070348,-360.0,0.00021129,2]
[378699567,1754961070357,-168.0,0.00021143,2]
[378699568,1754961070366,-460.0,0.00021156,2]
[378699569,1754961070376,-660.22,0.00021156,2]
[378699570,1754961070385,-460.0,0.00021157,2]
[378699571,1754961070394,-548.21,0.00021157,2]
[378699572,1754961070404,-476.95,0.00021157,2]
[378699573,1754961070413,-2289.39,0.00021157,2]
[378699574,1754961070423,-564.29,0.00021157,2]
[378699575,1754961070432,-1384.4,0.00021157,2]
[378699576,1754961070441,-460.0,0.00021157,2]
[378699577,1754961070451,-4496.04,0.00021157,2]
[378699578,1754961070460,-3611.52,0.00021158,2]
[378699579,1754961070470,-1382.19,0.00021158,2]
[378699580,1754961070480,-460.0,0.00021158,2]
[378699581,1754961070489,-1070.11,0.00021158,2]
[378699582,1754961070498,-2800.52,0.00021158,2]
[378699583,1754961070507,-1337.21,0.00021158,2]
[378699584,1754961070517,-207.56527739,0.00021158,2]
[378699585,1754961070556,-252.43472261,0.00021158,2]
[378699586,1754961070565,-224.96067677,0.00021158,2]
[378699587,1754961070576,-235.03932323,0.00021158,2]
[378699588,1754961070586,-317.97210677,0.00021158,2]
[378699589,1754961102093,160.033039,0.00023,30]
[378699590,1754961161798,160.033037,0.00023,30]
[378699594,1754961514828,24900.0,0.00017861,2]
[378699621,1754961607897,4872.29,0.00017861,2]
[378699622,1754961624684,348.90935,0.00013699,2]